bitfinex/quotes_BTCUSD_20250110
["timestamp","ask_amount","ask_price","bid_price","bid_amount"]
[1736490764776,0.212785,93992.0,93970.0,0.212833]
[1736490765510,0.212785,93992.0,93975.0,0.212822]
[1736490765918,0.002,93993.0,93979.0,0.212811]
[1736490766526,0.15,93994.0,93979.0,0.212811]
[1736490766762,0.003,93992.0,93979.0,0.212811]
[1736490766968,0.003,93992.0,93984.0,0.212801]
[1736490767177,0.212766,94000.0,93980.0,0.212811]
[1736490767375,0.001,93993.0,93980.0,0.212811]
[1736490767995,0.001,93993.0,93984.0,0.001]
[1736490768355,0.0213778,93992.0,93984.0,0.001]
[1736490768645,0.0213778,93992.0,93975.0,0.52994376]
[1736490768861,0.0213778,93992.0,93977.0,0.212818]
[1736490769021,0.0213778,93992.0,93978.0,0.10429976]
[1736490769272,0.212766,94000.0,93979.0,0.212813]
[1736490769554,0.212766,94000.0,93980.0,0.001]
[1736490769786,0.425533,94000.0,93980.0,0.001]
[1736490770746,0.212776,93996.0,93979.0,0.212813]
[1736490771495,0.216766,94000.0,93979.0,0.212813]
[1736490771770,0.216766,94000.0,93953.0,0.02126598]
[1736490771771,0.425659,93972.0,93953.0,0.02126598]
[1736490772030,0.212829,93972.0,93953.0,0.212871]
[1736490772753,0.425659,93972.0,93949.0,0.212879]
[1736490772993,0.425659,93972.0,93953.0,0.21287]
[1736490773233,0.212829,93972.0,93958.0,0.21286]
[1736490773439,0.292807,93982.0,93962.0,0.21285]
[1736490773692,0.15,93985.0,93970.0,0.212833]
[1736490774215,0.15,93985.0,93971.0,0.425662]
[1736490774699,0.15,93985.0,93976.0,0.212818]
[1736490774909,0.003,93982.0,93976.0,0.212818]
[1736490775125,0.003,93982.0,93972.0,0.212829]
[1736490775970,0.003,93982.0,93969.0,0.00014657]
[1736490776176,0.212824,93975.0,93969.0,0.00014657]
[1736490776791,0.212824,93974.0,93969.0,0.00014657]
[1736490776994,0.212829,93972.0,93969.0,0.00014657]
[1736490777350,0.212833,93970.0,93969.0,0.00014657]
[1736490777756,0.212829,93972.0,93969.0,0.00014657]
[1736490777757,0.212829,93972.0,93969.0,0.00114657]
[1736490778146,0.0474,93982.0,93969.0,0.00114657]
[1736490778351,0.0474,93982.0,93960.0,0.212854]
[1736490778352,0.21281,93981.0,93968.0,0.212836]
[1736490778579,0.00014676,93981.0,93976.0,0.02121174]
[1736490778774,0.00014676,93981.0,93965.0,0.01921174]
[1736490778775,0.15014676,93981.0,93965.0,0.01921174]
[1736490778982,0.212835,93970.0,93953.0,0.0771]
[1736490779186,0.42567,93970.0,93953.0,0.18139976]
[1736490779426,0.42567,93970.0,93969.0,0.002]
[1736490779629,0.212835,93970.0,93969.0,0.002]
[1736490779831,0.212811,93980.0,93969.0,0.002]
[1736490780039,0.15014676,93981.0,93969.0,0.002]
[1736490780040,0.15,93975.0,93969.0,0.002]
[1736490780272,0.15,93975.0,93963.0,0.01921174]
[1736490780452,0.212815,93978.0,93963.0,0.01921174]
[1736490780696,0.212836,93969.0,93963.0,0.01921174]
[1736490780897,0.212851,93963.0,93955.0,0.01921174]
[1736490781925,0.212836,93969.0,93957.0,0.01921174]
[1736490782126,0.212836,93969.0,93961.0,0.01921174]
[1736490782342,0.002,93975.0,93965.0,0.01921174]
[1736490782566,0.15,93975.0,93965.0,0.01921174]
[1736490783056,0.15,93975.0,93968.0,0.01921174]
[1736490783276,0.007,93978.0,93971.0,0.01921174]
[1736490783626,0.212811,93980.0,93965.0,0.01921174]
[1736490783829,0.212833,93970.0,93965.0,0.01921174]
[1736490784079,0.212813,93979.0,93965.0,0.01921174]
[1736490784080,0.001,93969.0,93965.0,0.01921174]
[1736490784319,0.001,93969.0,93936.0,0.1]
[1736490784320,0.212849,93964.0,93947.0,0.212885]
[1736490784526,0.212859,93959.0,93946.0,0.01021172]
[1736490784724,0.212859,93959.0,93945.0,0.0796]
[1736490784877,0.212859,93959.0,93946.0,0.01021172]
[1736490785440,0.212859,93959.0,93955.0,0.01021172]
[1736490785652,0.212857,93960.0,93955.0,0.01021172]
[1736490786236,0.425714,93960.0,93946.0,0.005]
[1736490786462,0.212857,93960.0,93946.0,0.005]
[1736490786670,0.01182114,93973.0,93947.0,0.01021172]
[1736490786955,0.212867,93955.0,93947.0,0.01021172]
[1736490787182,0.212867,93955.0,93954.0,0.01021172]
[1736490787391,0.212879,93950.0,93945.0,0.0796]
[1736490787623,0.212881,93949.0,93940.0,0.01021172]
[1736490787852,0.15,93969.0,93944.0,0.01021172]
[1736490788061,0.15,93967.0,93944.0,0.01021172]
[1736490788269,0.212872,93954.0,93944.0,0.0012117]
[1736490788462,0.212872,93954.0,93946.0,0.001]
[1736490788685,0.21301868,93954.0,93946.0,0.001]
[1736490788894,0.21301868,93954.0,93944.0,0.0012117]
[1736490789068,0.21301868,93954.0,93947.0,0.002]
[1736490790633,0.21301868,93954.0,93944.0,0.0012117]
[1736490790634,0.00014668,93954.0,93938.0,0.1012117]
[1736490790846,0.03644765,93954.0,93938.0,0.1012117]
[1736490791266,0.03844765,93954.0,93938.0,0.1012117]
[1736490791469,0.03644765,93954.0,93938.0,0.1012117]
[1736490791783,0.212876,93951.0,93938.0,0.1012117]
[1736490792821,0.04044765,93954.0,93938.0,0.0012117]
[1736490793216,0.212888,93946.0,93938.0,0.0012117]
[1736490794326,0.212888,93946.0,93938.0,0.1012117]
[1736490794786,0.212874,93952.0,93938.0,0.1012117]
[1736490795007,0.212874,93952.0,93938.0,0.1022117]
[1736490795154,0.212876,93951.0,93938.0,0.1022117]
[1736490795359,0.212876,93951.0,93938.0,0.1032117]
[1736490795793,0.212876,93951.0,93938.0,0.1012117]
[1736490796007,0.00014668,93954.0,93953.0,0.0469117]
[1736490796563,0.00014668,93954.0,93953.0,0.1232117]
[1736490797034,0.00014668,93954.0,93953.0,0.20657575]
[1736490797235,0.00014668,93954.0,93953.0,0.20551146]
[1736490797893,0.00114668,93954.0,93953.0,0.20951146]
[1736490798100,0.00014668,93954.0,93953.0,0.20551146]
[1736490798284,0.00014668,93954.0,93953.0,0.19651144]
[1736490798461,0.00114668,93954.0,93953.0,0.20051144]
[1736490798659,0.00014668,93954.0,93953.0,0.19651144]
[1736490799069,0.00114668,93954.0,93953.0,0.20351144]
[1736490800434,0.00114668,93954.0,93953.0,0.007]
[1736490801257,0.02254735,93954.0,93953.0,0.007]
[1736490801471,0.00014668,93954.0,93940.0,0.212899]
[1736490801879,0.00014668,93954.0,93953.0,0.005]
[1736490802098,0.25444644,93954.0,93953.0,0.002]
[1736490802302,0.33234644,93954.0,93953.0,0.005]
[1736490802914,0.33234644,93954.0,93953.0,0.003]
[1736490803779,0.33234644,93954.0,93935.0,8.54e-05]
[1736490803780,0.212892,93945.0,93935.0,8.54e-05]
[1736490805386,0.212892,93945.0,93935.0,0.0010854]
[1736490805582,0.212892,93945.0,93935.0,0.0020854]
[1736490805806,0.212895,93943.0,93935.0,0.0020854]
[1736490806594,0.212895,93943.0,93935.0,8.54e-05]
[1736490806989,0.212895,93943.0,93935.0,0.0020854]
[1736490808080,0.212895,93943.0,93935.0,0.0030854]
[1736490808512,0.212892,93945.0,93935.0,0.0030854]
[1736490809141,0.00014668,93954.0,93938.0,0.1]
[1736490809353,0.00014668,93954.0,93936.0,0.18206436]
[1736490809354,0.00014668,93954.0,93939.0,0.20429976]
[1736490809713,0.00014668,93954.0,93944.0,0.212891]
[1736490810153,0.03644735,93954.0,93944.0,0.212891]
[1736490810684,0.00014668,93954.0,93944.0,0.212891]
[1736490811340,0.00414668,93954.0,93944.0,0.212891]
[1736490811710,0.00014668,93954.0,93944.0,0.212891]
[1736490812126,0.00114668,93954.0,93944.0,0.212891]
[1736490812758,0.00014668,93954.0,93944.0,0.212891]
[1736490812962,0.00114668,93954.0,93944.0,0.212891]
[1736490813137,0.00514668,93954.0,93944.0,0.20389098]
[1736490813335,0.00114668,93954.0,93944.0,0.20389098]
[1736490813559,0.00014668,93954.0,93944.0,0.20389098]
[1736490813768,0.00114668,93954.0,93944.0,0.20389098]
[1736490813997,0.00014668,93954.0,93944.0,0.20389098]
[1736490814589,0.03630067,93953.0,93944.0,0.20389098]
[1736490815371,0.03630067,93953.0,93928.0,0.0762]
[1736490815372,0.212876,93951.0,93928.0,0.0762]
[1736490815778,0.212895,93943.0,93928.0,0.0762]
[1736490816897,0.212895,93943.0,93935.0,0.0010854]
[1736490817035,0.212895,93943.0,93935.0,0.0030854]
[1736490817486,0.42579,93943.0,93935.0,0.0030854]
[1736490817836,0.212899,93941.0,93935.0,0.0030854]
[1736490818392,0.042579,93942.0,93935.0,0.0030854]
[1736490818592,0.212895,93943.0,93935.0,0.0030854]
[1736490818795,0.212895,93943.0,93935.0,0.0020854]
[1736490819568,0.212895,93943.0,93935.0,0.0050854]
[1736490819791,0.212895,93943.0,93935.0,8.54e-05]
[1736490819915,0.212895,93943.0,93935.0,0.0010854]
[1736490820114,0.0425783,93942.0,93935.0,0.0030854]
[1736490820961,0.212888,93946.0,93935.0,0.0030854]
[1736490821999,0.212888,93946.0,93935.0,0.0020854]
[1736490822199,0.212888,93946.0,93935.0,0.0040854]
[1736490822434,0.212888,93946.0,93935.0,0.0020854]
[1736490822586,0.212888,93946.0,93935.0,0.0050854]
[1736490822791,0.26704149,93946.0,93935.0,0.0030854]
[1736490822992,0.26704149,93946.0,93935.0,0.0010854]
[1736490823195,0.26704149,93946.0,93935.0,0.001]
[1736490823641,0.26704149,93946.0,93929.0,0.20501138]
[1736490823823,0.26904149,93946.0,93929.0,0.20501138]
[1736490824039,0.0302375,93945.0,93929.0,0.20501138]
[1736490825767,0.212892,93944.0,93929.0,0.20501138]
[1736490825975,0.0302375,93945.0,93929.0,0.20501138]
[1736490826899,0.212892,93944.0,93929.0,0.20501138]
[1736490827099,0.10429976,93944.0,93924.0,0.212936]
[1736490827354,0.212919,93933.0,93920.0,0.0822]
[1736490827569,0.15,93941.0,93913.0,0.0822]
[1736490827749,0.212927,93929.0,93914.0,0.21296]
[1736490828606,0.212927,93929.0,93913.0,0.0822]
[1736490828607,0.425854,93929.0,93913.0,0.1822]
[1736490828810,0.425854,93929.0,93913.0,0.0822]
[1736490829013,0.425854,93929.0,93913.0,0.295161]
[1736490829223,0.425854,93929.0,93913.0,0.312961]
[1736490829635,0.10429976,93928.0,93917.0,0.0040854]
[1736490829842,0.212948,93920.0,93917.0,0.0040854]
[1736490830091,0.212948,93920.0,93917.0,0.0070854]
[1736490830299,0.212933,93926.0,93917.0,0.0070854]
[1736490830504,0.15,93923.0,93917.0,0.0030854]
[1736490830707,0.212942,93922.0,93917.0,0.0030854]
[1736490831158,0.21306687,93922.0,93917.0,0.0030854]
[1736490831365,0.21306687,93922.0,93917.0,8.54e-05]
[1736490831539,0.00012487,93922.0,93917.0,8.54e-05]
[1736490831995,0.00012487,93922.0,93919.0,0.212949]
[1736490832199,0.00012487,93922.0,93921.0,0.212944]
[1736490832407,0.00012487,93922.0,93921.0,0.312944]
[1736490832812,0.00012487,93922.0,93921.0,0.212944]
[1736490833223,0.00012487,93922.0,93921.0,0.20394398]
[1736490833398,0.00012487,93922.0,93920.0,0.0486]
[1736490833637,0.00012487,93922.0,93921.0,0.001]
[1736490833824,0.00012487,93922.0,93919.0,0.214949]
[1736490834494,0.00012487,93922.0,93919.0,0.212949]
[1736490834701,0.00012487,93922.0,93919.0,0.425898]
[1736490834909,0.00012487,93922.0,93921.0,0.103]
[1736490835129,0.00012487,93922.0,93921.0,0.003]
[1736490835338,0.00112487,93922.0,93921.0,0.005]
[1736490835558,0.00012487,93922.0,93921.0,0.003]
[1736490835909,0.00012487,93922.0,93918.0,0.1753]
[1736490836122,0.00012487,93922.0,93918.0,0.0753]
[1736490836332,0.00112487,93922.0,93919.0,0.004]
[1736490836739,0.04282316,93922.0,93919.0,0.002]
[1736490836936,0.04382316,93922.0,93921.0,0.002]
[1736490837144,0.00112487,93922.0,93921.0,0.002]
[1736490837971,0.00112487,93922.0,93921.0,0.102]
[1736490838576,0.00112487,93922.0,93921.0,0.09299998]
[1736490838904,0.00012487,93922.0,93921.0,0.09299998]
[1736490839486,0.00012487,93922.0,93921.0,0.09499998]
[1736490839858,0.00012487,93922.0,93921.0,0.09699998]
[1736490840874,0.00012487,93922.0,93921.0,0.28369974]
[1736490841074,0.00012487,93922.0,93921.0,0.32889974]
[1736490841583,0.00012487,93922.0,93921.0,0.32689974]
[1736490841797,0.00012487,93922.0,93921.0,0.35389974]
[1736490842000,0.00012487,93922.0,93921.0,0.35189974]
[1736490842209,0.00012487,93922.0,93921.0,0.35289974]
[1736490842427,0.00012487,93922.0,93921.0,0.34889974]
[1736490842648,0.00112487,93922.0,93921.0,0.35389974]
[1736490842824,0.00212487,93922.0,93921.0,0.35489974]
[1736490843281,0.00112487,93922.0,93921.0,0.34889974]
[1736490843496,0.00112487,93922.0,93921.0,0.45489974]
[1736490843679,0.00212487,93922.0,93921.0,0.60489974]
[1736490843915,0.01136065,93969.0,93925.0,0.1261]
[1736490844129,0.21299293,93965.0,93954.0,0.0803]
[1736490844761,0.212849,93963.0,93954.0,0.0803]
[1736490845426,0.212849,93963.0,93948.0,0.258682]
[1736490846221,0.214849,93963.0,93948.0,0.258682]
[1736490846447,0.212849,93963.0,93948.0,0.258682]
[1736490846688,0.212862,93958.0,93947.0,0.0803]
[1736490847053,0.0214862,93957.0,93947.0,0.0803]
[1736490847461,0.0214862,93957.0,93948.0,0.212883]
[1736490847662,0.002,93963.0,93948.0,0.212883]
[1736490847987,0.212852,93962.0,93948.0,0.212883]
[1736490848182,0.212852,93962.0,93948.0,0.20388298]
[1736490848545,0.162852,93962.0,93948.0,0.20388298]
[1736490849180,0.163852,93962.0,93948.0,0.20388298]
[1736490850035,0.01136065,93969.0,93947.0,0.0803]
[1736490850209,0.15,93970.0,93953.0,0.212871]
[1736490850813,0.19920026,93970.0,93953.0,0.212871]
[1736490851033,0.15,93970.0,93953.0,0.212871]
[1736490851584,0.15,93967.0,93949.0,0.212881]
[1736490851763,0.15,93965.0,93949.0,0.212881]
[1736490852303,0.15,93965.0,93950.0,0.212879]
[1736490852503,0.15,93965.0,93954.0,0.212868]
[1736490852734,0.212838,93968.0,93954.0,0.212868]
[1736490852924,0.15,93967.0,93954.0,0.212868]
[1736490853120,0.004,93965.0,93954.0,0.20386798]
[1736490854419,0.003,93965.0,93954.0,0.20386798]
[1736490854660,0.15,93967.0,93950.0,0.212879]
[1736490854837,0.15,93965.0,93952.0,0.212874]
[1736490854991,0.152,93965.0,93952.0,0.212874]
[1736490855193,0.15,93965.0,93952.0,0.212874]
[1736490855421,0.151,93965.0,93952.0,0.212874]
[1736490855938,0.15,93965.0,93952.0,0.212874]
[1736490856322,0.151,93965.0,93950.0,0.212879]
[1736490856528,0.0588195,93964.0,93950.0,0.212879]
[1736490857050,0.151,93965.0,93950.0,0.212879]
[1736490857670,0.15,93965.0,93950.0,0.212879]
[1736490857874,0.212838,93968.0,93955.0,0.212866]
[1736490858089,0.001,93965.0,93951.0,0.09299998]
[1736490858293,0.001,93965.0,93958.0,0.21286]
[1736490858941,0.2239408,93972.0,93958.0,0.21286]
[1736490859120,0.001,93968.0,93958.0,0.0587355]
[1736490859537,0.001,93968.0,93955.0,0.212867]
[1736490860639,0.2239408,93972.0,93959.0,0.212857]
[1736490860842,0.212829,93972.0,93959.0,0.212857]
[1736490862116,0.213829,93972.0,93959.0,0.212857]
[1736490862405,0.213829,93972.0,93955.0,0.213867]
[1736490862921,0.001,93972.0,93961.0,0.212854]
[1736490863130,0.001,93972.0,93966.0,0.212841]
[1736490863336,0.001,93972.0,93966.0,0.20384098]
[1736490863747,0.001,93972.0,93968.0,0.212838]
[1736490864121,0.0001706,93973.0,93968.0,0.212838]
[1736490864302,0.001,93972.0,93968.0,0.212838]
[1736490864711,0.0001706,93973.0,93968.0,0.212838]
[1736490864914,0.0001706,93973.0,93968.0,0.214838]
[1736490865114,0.0001706,93973.0,93968.0,0.27749268]
[1736490865314,0.0001706,93973.0,93968.0,0.218838]
[1736490865579,0.0001706,93973.0,93968.0,0.216838]
[1736490865789,0.0001706,93973.0,93968.0,0.212838]
[1736490866010,0.0001706,93973.0,93968.0,0.213838]
[1736490867161,0.0001706,93973.0,93968.0,0.215838]
[1736490867379,0.0001706,93973.0,93968.0,0.216838]
[1736490867615,0.0001706,93973.0,93968.0,0.213838]
[1736490867812,0.0001706,93973.0,93968.0,0.215838]
[1736490868011,0.0001706,93973.0,93968.0,0.214838]
[1736490868332,0.0001706,93973.0,93968.0,0.003]
[1736490871931,0.0001706,93973.0,93968.0,0.215836]
[1736490872143,0.0001706,93973.0,93968.0,0.29983596]
[1736490873292,0.0001706,93973.0,93968.0,0.08399996]
[1736490878155,0.0001706,93973.0,93968.0,0.07499994]
[1736490878952,0.0001706,93973.0,93969.0,0.212836]
[1736490879154,0.0001706,93973.0,93968.0,0.07499994]
[1736490879626,0.0001706,93973.0,93969.0,0.212836]
[1736490880013,0.0001706,93973.0,93969.0,0.425672]
[1736490880484,0.16838795,93992.0,93972.0,0.0752]
[1736490880683,0.17997194,93992.0,93972.0,0.0752]
[1736490880887,0.39275694,93992.0,93972.0,0.288029]
[1736490881703,0.39575694,93992.0,93972.0,0.288029]
[1736490881924,0.40275694,93992.0,93972.0,0.289029]
[1736490882129,0.02158399,93992.0,93974.0,0.425648]
[1736490882679,0.02158399,93992.0,93979.0,0.212812]
[1736490883144,0.02158399,93992.0,93974.0,0.212824]
[1736490883303,0.01458399,93992.0,93974.0,0.20382398]
[1736490883670,0.01158399,93992.0,93974.0,0.25750628]
[1736490883873,0.003,93992.0,93978.0,0.212814]
[1736490884108,0.003,93992.0,93975.0,0.212822]
[1736490884341,0.257878,93995.0,93975.0,0.212822]
[1736490884532,0.25802488,93995.0,93977.0,0.212818]
[1736490884663,0.008,93992.0,93975.0,0.212822]
[1736490884901,0.001,93992.0,93975.0,0.30151721]
[1736490885108,0.002,93992.0,93975.0,0.30151721]
[1736490885512,0.26922405,93995.0,93975.0,0.30151721]
[1736490885942,0.002,93992.0,93975.0,0.30151721]
[1736490886365,0.002,93992.0,93975.0,0.212822]
[1736490887503,0.002,93992.0,93977.0,0.212816]
[1736490887786,0.01134605,93995.0,93979.0,0.212813]
[1736490888003,0.01050023,93995.0,93979.0,0.212813]
[1736490888300,0.003,93995.0,93979.0,0.20381298]
[1736490888674,0.425538,93999.0,93979.0,0.20381298]
[1736490888891,0.425538,93999.0,93979.0,0.20395986]
[1736490889115,0.001,93992.0,93979.0,0.20395986]
[1736490889321,0.425538,93999.0,93979.0,0.20395986]
[1736490889536,0.43709796,93999.0,93979.0,0.20395986]
[1736490889743,0.002,93995.0,93979.0,0.20395986]
[1736490889943,0.002,93995.0,93985.0,0.212797]
[1736490890156,0.002,93995.0,93979.0,0.20395986]
[1736490891429,0.212777,93995.0,93979.0,0.20395986]
[1736490892469,0.215777,93995.0,93979.0,0.20395986]
[1736490892904,0.003,93995.0,93979.0,0.20395986]
[1736490893309,0.003,93995.0,93979.0,0.19495984]
[1736490893942,0.003,93995.0,93984.0,0.28780094]
[1736490894351,0.003,93995.0,93984.0,0.07499994]
[1736490895058,0.002,93995.0,93984.0,0.07499994]
[1736490895265,0.01155996,93999.0,93984.0,0.07499994]
[1736490895512,0.212767,94000.0,93984.0,0.07499994]
[1736490897620,0.22399238,94000.0,93984.0,0.07499994]
[1736490897957,0.22599238,94000.0,93984.0,0.07499994]
[1736490898230,0.22599238,94000.0,93984.0,0.06599992]
[1736490898798,0.22699238,94000.0,93984.0,0.06599992]
[1736490901199,0.01422538,94000.0,93984.0,0.06599992]
[1736490901315,0.01422538,94000.0,93985.0,0.212799]
[1736490902132,0.01322538,94000.0,93985.0,0.212799]
[1736490902535,0.01222538,94000.0,93985.0,0.212799]
[1736490904123,0.01422538,94000.0,93985.0,0.212799]
[1736490904332,0.003,94000.0,93990.0,0.06860323]
[1736490904530,0.003,94000.0,93997.0,0.212771]
[1736490904730,0.003,94000.0,93999.0,0.294168]
[1736490904936,0.003,94000.0,93999.0,0.39846776]
[1736490905136,0.002,94000.0,93999.0,0.46446768]
[1736490905312,0.0455,94024.0,94009.0,0.212745]
[1736490906548,0.01099884,94025.0,94009.0,0.31704476]
[1736490906757,0.0001704,94030.0,94009.0,0.39844476]
[1736490906996,0.01136848,94029.0,94009.0,0.39844476]
[1736490907169,0.0001706,94029.0,94009.0,0.39844476]
[1736490907387,0.0001706,94029.0,94009.0,0.46444468]
[1736490907960,0.0001706,94029.0,94009.0,0.47541221]
[1736490908337,0.0001706,94029.0,94009.0,0.50141221]
[1736490908745,0.0001706,94029.0,94009.0,0.50901221]
[1736490909123,0.0001706,94029.0,94009.0,0.51101221]
[1736490909327,0.0011704,94010.0,94009.0,0.99261221]
[1736490909897,0.0011704,94010.0,94009.0,0.98501221]
[1736490910106,0.0011704,94010.0,94009.0,0.99261221]
[1736490910347,0.0011704,94010.0,94009.0,0.98761221]
[1736490910708,0.0021704,94010.0,94009.0,0.99361221]
[1736490911083,0.0021704,94010.0,94009.0,1.09791197]
[1736490911487,0.0021704,94010.0,94009.0,1.19791197]
[1736490911716,0.0021704,94010.0,94009.0,1.24731197]
[1736490912581,0.0021704,94010.0,94009.0,1.14301221]
[1736490916510,0.0021704,94010.0,94009.0,1.19291221]
[1736490922068,0.0021704,94010.0,94009.0,1.06231221]
[1736490922285,0.0021704,94010.0,94009.0,1.02051221]
[1736490922492,0.0021704,94010.0,94009.0,0.99361221]
[1736490922699,8e-07,94011.0,94010.0,0.41519992]
[1736490922877,8e-07,94011.0,94010.0,0.51949968]
[1736490923423,8e-07,94011.0,94010.0,0.61949968]
[1736490923631,8e-07,94011.0,94010.0,1.04019968]
[1736490924276,0.0001706,94029.0,94028.0,0.43220192]
[1736490924474,0.00031745,94029.0,94028.0,0.74080144]
[1736490925055,0.00031745,94029.0,94028.0,0.89080144]
[1736490925317,6.5e-07,94031.0,94030.0,0.60959792]
[1736490925630,6.5e-07,94031.0,94030.0,0.84449768]
[1736490926299,6.5e-07,94031.0,94030.0,0.63689768]
[1736490926509,6.5e-07,94031.0,94030.0,0.39789776]
[1736490926727,6.5e-07,94031.0,94030.0,0.58673897]
[1736490926942,6.5e-07,94031.0,94030.0,0.48243921]
[1736490927123,6.5e-07,94031.0,94030.0,0.50543921]
[1736490927338,6.5e-07,94031.0,94030.0,0.48243921]
[1736490927741,6.5e-07,94031.0,94030.0,0.48743921]
[1736490928155,0.00100065,94031.0,94030.0,0.49643921]
[1736490928328,0.00100065,94031.0,94030.0,0.48243921]
[1736490928530,0.00100065,94031.0,94030.0,0.48643921]
[1736490928731,0.00200065,94031.0,94030.0,0.49543921]
[1736490930996,0.00200065,94031.0,94030.0,0.013]
[1736490931778,0.00200065,94031.0,94030.0,0.009]
[1736490932001,6.5e-07,94031.0,94025.0,0.212709]
[1736490932228,6.5e-07,94031.0,94030.0,0.215698]
[1736490932653,6.5e-07,94031.0,94030.0,0.21618862]
[1736490932831,6.5e-07,94031.0,94030.0,0.21918862]
[1736490933208,6.5e-07,94031.0,94030.0,0.2121886]
[1736490933659,6.5e-07,94031.0,94030.0,0.2101886]
[1736490934076,6.5e-07,94031.0,94030.0,0.2111886]
[1736490934286,6.5e-07,94031.0,94030.0,0.26017835]
[1736490934484,6.5e-07,94031.0,94030.0,0.2111886]
[1736490938289,6.5e-07,94031.0,94030.0,0.20218858]
[1736490940251,6.5e-07,94031.0,94030.0,0.2681885]
[1736490943177,6.5e-07,94031.0,94030.0,0.25918848]
[1736490945036,6.5e-07,94031.0,94030.0,0.36348824]
[1736490945456,6.5e-07,94031.0,94030.0,0.42906796]
[1736490945910,6.5e-07,94031.0,94030.0,0.50536796]
[1736490946121,6.5e-07,94031.0,94030.0,0.52836796]
[1736490946387,6.5e-07,94031.0,94030.0,1.08387869]
[1736490946590,6.5e-07,94031.0,94030.0,1.20568729]
[1736490946790,6.5e-07,94031.0,94030.0,1.20268729]
[1736490947222,0.0001708,94040.0,94030.0,1.20268729]
[1736490947223,6.5e-07,94042.0,94041.0,0.16599992]
[1736490947462,6.5e-07,94042.0,94041.0,1.02222291]
[1736490947694,6.5e-07,94042.0,94041.0,1.02115992]
[1736490949081,6.5e-07,94042.0,94041.0,1.03015992]
[1736490949291,2.5e-07,94048.0,94047.0,0.542459]
[1736490949498,2.5e-07,94048.0,94047.0,0.88082917]
[1736490949703,2.5e-07,94048.0,94047.0,0.88433393]
[1736490950360,2.5e-07,94048.0,94047.0,0.93293393]
[1736490950573,0.0001706,94063.0,94056.0,0.312639]
[1736490950798,0.0001706,94063.0,94056.0,0.77174941]
[1736490951007,0.0001706,94063.0,94056.0,0.85134094]
[1736490952257,0.0001706,94063.0,94056.0,0.86034094]
[1736490952919,8e-07,94063.0,94062.0,0.55162492]
[1736490953137,2e-07,94063.0,94062.0,0.81583541]
[1736490953365,2e-07,94063.0,94062.0,0.85170093]
[1736490954204,2e-07,94063.0,94062.0,0.85570093]
[1736490954771,2e-07,94063.0,94062.0,0.86470093]
[1736490957815,2e-07,94063.0,94062.0,0.88574206]
[1736490958418,2e-07,94063.0,94062.0,1.25824206]
[1736490964050,2e-07,94066.0,94065.0,0.31599992]
[1736490964274,9.3e-07,94066.0,94065.0,0.52299968]
[1736490964488,9.3e-07,94066.0,94065.0,0.89896171]
[1736490964706,0.0001704,94101.0,94100.0,0.212539]
[1736490964922,0.0003171,94101.0,94100.0,0.39039868]
[1736490965379,0.0003171,94101.0,94100.0,0.39384747]
[1736490965589,0.0003171,94101.0,94100.0,0.49814723]
[1736490966007,0.0003171,94101.0,94100.0,0.50514723]
[1736490966689,0.0003171,94101.0,94100.0,0.50714723]
[1736490967123,0.0003171,94101.0,94100.0,0.50514723]
[1736490967339,0.0003171,94101.0,94100.0,0.49814723]
[1736490967537,0.0003171,94101.0,94100.0,0.50014723]
[1736490967677,0.0003171,94101.0,94100.0,0.40284747]
[1736490967886,0.0003171,94101.0,94100.0,0.39584747]
[1736490968121,0.0003171,94101.0,94100.0,0.40284747]
[1736490969830,0.0003171,94101.0,94100.0,0.41407189]
[1736490971083,0.0003171,94101.0,94100.0,0.43707189]
[1736490971292,0.0003171,94101.0,94100.0,0.54137165]
[1736490971654,0.0003171,94101.0,94100.0,0.56310293]
[1736490973290,0.0003171,94101.0,94100.0,0.45880317]
[1736490975178,0.0003171,94101.0,94100.0,0.53720317]
[1736490976263,0.0003171,94101.0,94100.0,0.85980317]
[1736490977559,0.0003171,94101.0,94100.0,0.85080317]
[1736490977745,0.0003171,94101.0,94100.0,0.85780317]
[1736490978238,0.0003171,94101.0,94100.0,0.85080317]
[1736490978408,0.0003171,94101.0,94100.0,0.85980317]
[1736490978842,0.0003171,94101.0,94100.0,0.85080317]
[1736490979044,0.0003171,94101.0,94100.0,0.85980317]
[1736490979430,0.0003171,94101.0,94100.0,0.86080317]
[1736490979961,0.0003171,94101.0,94100.0,0.85980317]
[1736490980293,0.0003171,94101.0,94100.0,0.86280317]
[1736490980773,0.0003171,94101.0,94100.0,0.96710293]
[1736490980961,0.0003171,94101.0,94100.0,1.11710293]
[1736490982309,0.0003171,94101.0,94100.0,1.15020325]
[1736490982971,0.0003171,94101.0,94100.0,1.14264325]
[1736490983151,0.0003171,94101.0,94100.0,1.15020325]
[1736490983920,0.0003171,94101.0,94100.0,1.04590349]
[1736490986027,0.0003171,94101.0,94100.0,1.0424547]
[1736490986325,0.0003171,94101.0,94100.0,1.04585717]
[1736490989855,0.0003171,94101.0,94100.0,1.05585717]
[1736490994017,0.0001704,94126.0,94125.0,0.29779992]
[1736490994018,9e-07,94126.0,94125.0,0.29779992]
[1736490994223,9e-07,94126.0,94125.0,0.70802299]
[1736490994425,9e-07,94126.0,94125.0,0.71141784]
[1736490994656,9e-07,94126.0,94125.0,0.51083793]
[1736490994842,9e-07,94126.0,94125.0,0.54373753]
[1736490995419,9e-07,94126.0,94125.0,0.55373753]
[1736490996212,9e-07,94126.0,94125.0,0.56488899]
[1736490996566,9e-07,94126.0,94125.0,0.58788899]
[1736490996774,9e-07,94126.0,94125.0,0.70924576]
[1736490997225,9e-07,94126.0,94125.0,1.03184576]
[1736490997452,9e-07,94126.0,94125.0,1.10784576]
[1736490998085,9e-07,94126.0,94125.0,1.10584576]
[1736490998604,9e-07,94126.0,94125.0,1.09984576]
[1736490998936,9e-07,94126.0,94125.0,1.10684576]
[1736490999136,9e-07,94126.0,94125.0,1.10284576]
[1736490999564,9e-07,94126.0,94125.0,1.11184576]
[1736490999824,9e-07,94126.0,94125.0,1.10684576]
[1736491000047,9e-07,94126.0,94125.0,1.11184576]
[1736491000871,9e-07,94126.0,94125.0,1.10284576]
[1736491001098,9e-07,94126.0,94125.0,1.13263995]
[1736491001295,9e-07,94126.0,94125.0,0.89072318]
[1736491001641,9e-07,94126.0,94125.0,0.90328318]